fUST/lending_fUST_20250508
["ID","MTS","AMOUNT","RATE_DAILY","PERIOD"]
[360281524,1746696641640,-500.0,0.00012473,2]
[360281525,1746696641649,-500.0,0.00012473,2]
[360281526,1746696641659,-500.0,0.00012473,2]
[360281527,1746696641668,-500.0,0.00012473,2]
[360281528,1746696641678,-500.0,0.00012473,2]
[360281529,1746696641687,-500.0,0.00012473,2]
[360281530,1746696641696,-500.0,0.00012473,2]
[360281531,1746696641706,-500.0,0.00012473,2]
[360281532,1746696641715,-500.0,0.00012473,2]
[360281533,1746696641725,-503.0155295,0.00012473,2]
[360281534,1746696641733,-500.0,0.00012473,2]
[360281535,1746696641742,-500.0,0.00012473,2]
[360281536,1746696641751,-500.0,0.00012473,2]
[360281537,1746696641761,-500.0,0.00012473,2]
[360281538,1746696641769,-500.0,0.00012473,2]
[360281539,1746696641779,-500.0,0.00012473,2]
[360281540,1746696641788,-500.0,0.00012473,2]
[360281541,1746696641797,-161.99065208,0.00012473,2]
[360281542,1746696641807,-501.44768991,0.00012473,2]
[360281543,1746696641816,-385.10275793,0.000125,2]
[360281544,1746696641825,-200286.80155673,0.000125,2]
[360281545,1746696641835,-151.0,0.000125,2]
[360281546,1746696641844,-151.0,0.000125,2]
[360281547,1746696641853,-270.0,0.000125,2]
[360281548,1746696641862,-270.0,0.000125,2]
[360281549,1746696641871,-151.0,0.000125,2]
[360281550,1746696641881,-151.0,0.000126,2]
[360281551,1746696641890,-151.0,0.00012602,2]
[360281552,1746696641900,-400.0,0.00012602,2]
[360281553,1746696641909,-473.62,0.00012602,2]
[360281554,1746696641918,-400.0,0.00012602,2]
[360281555,1746696641931,-577.48,0.00012602,2]
[360281556,1746696641941,-833.53,0.00012602,2]
[360281557,1746696641951,-151.0,0.00012602,2]
[360281558,1746696641961,-400.0,0.00012602,2]
[360281559,1746696641971,-400.0,0.00012602,2]
[360281560,1746696641982,-403.82,0.00012602,2]
[360281561,1746696641991,-400.0,0.00012602,2]
[360281562,1746696642001,-1433.03,0.00012602,2]
[360281563,1746696642010,-864.11,0.00012602,2]
[360281564,1746696642019,-400.0,0.00012602,2]
[360281565,1746696642029,-400.0,0.00012602,2]
[360281566,1746696642041,-400.0,0.00012602,2]
[360281567,1746696642050,-479.43,0.00012602,2]
[360281568,1746696642060,-400.0,0.00012602,2]
[360281569,1746696642069,-400.0,0.00012602,2]
[360281570,1746696642080,-400.0,0.00012602,2]
[360281571,1746696642089,-400.0,0.00012602,2]
[360281572,1746696642099,-400.0,0.00012602,2]
[360281573,1746696642108,-400.0,0.00012602,2]
[360281574,1746696642123,-400.0,0.00012602,2]
[360281575,1746696642134,-467.54,0.00012602,2]
[360281576,1746696642143,-400.0,0.00012602,2]
[360281577,1746696642152,-400.0,0.00012602,2]
[360281578,1746696642163,-721.15,0.00012602,2]
[360281579,1746696642173,-400.0,0.00012602,2]
[360281580,1746696642183,-400.0,0.00012602,2]
[360281581,1746696642192,-229.78683417,0.00012602,2]
[360281582,1746696642205,-472.81,0.00012602,2]
[360281583,1746696642214,-400.0,0.00012602,2]
[360281584,1746696642224,-551.18,0.00012602,2]
[360281585,1746696642233,-400.0,0.00012602,2]
[360281586,1746696642243,-649.47,0.00012602,2]
[360281587,1746696642252,-594.67,0.00012602,2]
[360281588,1746696642262,-400.0,0.00012602,2]
[360281589,1746696642272,-400.0,0.00012602,2]
[360281590,1746696642281,-615.44,0.00012602,2]
[360281591,1746696642290,-400.0,0.00012602,2]
[360281592,1746696642300,-400.0,0.00012602,2]
[360281593,1746696642309,-1187.85,0.00012602,2]
[360281594,1746696642319,-1757.28,0.00012602,2]
[360281595,1746696642328,-438.11,0.00012602,2]
[360281596,1746696642337,-635.72,0.00012602,2]
[360281597,1746696642348,-400.0,0.00012602,2]
[360281598,1746696642358,-400.0,0.00012602,2]
[360281599,1746696642367,-472.11,0.00012602,2]
[360281600,1746696642377,-400.0,0.00012602,2]
[360281601,1746696642386,-817.72,0.00012602,2]
[360281602,1746696642395,-270.0,0.00012602,2]
[360281603,1746696642406,-648.06,0.00012602,2]
[360281604,1746696642415,-270.0,0.00012602,2]
[360281605,1746696642425,-400.0,0.00012602,2]
[360281606,1746696642434,-1871.12,0.00012602,2]
[360281607,1746696642444,-222.133944,0.00012602,2]
[360281608,1746696642454,-400.0,0.00012602,2]
[360281609,1746696642463,-400.0,0.00012602,2]
[360281610,1746696642472,-756.77,0.00012602,2]
[360281611,1746696642483,-400.0,0.00012602,2]
[360281612,1746696642493,-487.45,0.00012602,2]
[360281613,1746696642502,-400.0,0.00012602,2]
[360281614,1746696642512,-400.0,0.00012602,2]
[360281615,1746696642522,-1965.33,0.00012602,2]
[360281616,1746696642531,-538.71,0.00012602,2]
[360281617,1746696642541,-1239.36,0.00012602,2]
[360281618,1746696642553,-400.0,0.00012602,2]
[360281619,1746696642562,-400.0,0.00012602,2]
[360281620,1746696642571,-400.0,0.00012602,2]
[360281621,1746696642580,-400.0,0.00012602,2]
[360281622,1746696642590,-447.12,0.00012602,2]
[360281623,1746696642600,-484.7,0.00012602,2]
[360281624,1746696642610,-489.57,0.00012602,2]
[360281625,1746696642619,-791.07,0.00012602,2]
[360281626,1746696642628,-151.0,0.00012627,2]
[360281627,1746696642638,-151.0,0.00012627,2]
[360281628,1746696642647,-151.0,0.00012627,2]
[360281629,1746696642657,-151.0,0.00012645,2]
[360281630,1746696642666,-199.243128,0.00012645,2]
[360281631,1746696642676,-50111.3043693,0.000127,2]
[360281632,1746696642685,-151.0,0.000127,2]
[360281633,1746696642694,-151.0,0.000127,2]
[360281634,1746696642704,-151.0,0.000127,2]
[360281635,1746696642713,-151.0,0.000127,2]
[360281636,1746696642723,-151.0,0.000127,2]
[360281637,1746696642733,-270.0,0.000127,2]
[360281638,1746696642742,-270.0,0.000127,2]
[360281639,1746696642752,-16558.86792291,0.000127,2]
[360281640,1746696642761,-16558.86792281,0.000127,2]
[360281641,1746696642771,-16558.86792281,0.000127,2]
[360281642,1746696642780,-270.0,0.000127,2]
[360281643,1746696642789,-270.0,0.000127,2]
[360281644,1746696642799,-16558.86792281,0.00012728,2]
[360281645,1746696642808,-1304.2989158,0.00012736,2]
[360281646,1746696642818,-203.26378741,0.0001279,2]
[360281647,1746696642828,-175.978737,0.00012806,2]
[360281648,1746696642837,-400.0,0.00012876,2]
[360281649,1746696642847,-473.62,0.00012876,2]
[360281650,1746696642856,-400.0,0.00012876,2]
[360281651,1746696642865,-577.48,0.00012876,2]
[360281652,1746696642875,-833.53,0.00012876,2]
[360281653,1746696642885,-400.0,0.00012876,2]
[360281654,1746696642897,-400.0,0.00012876,2]
[360281655,1746696642906,-403.82,0.00012876,2]
[360281656,1746696642916,-400.0,0.00012876,2]
[360281657,1746696642925,-1433.03,0.00012876,2]
[360281658,1746696642935,-864.11,0.00012876,2]
[360281659,1746696642944,-271.26047252,0.00012876,2]
[360281660,1746696642954,-400.0,0.00012876,2]
[360281661,1746696642963,-400.0,0.00012876,2]
[360281662,1746696642972,-479.43,0.00012876,2]
[360281663,1746696642982,-400.0,0.00012876,2]
[360281664,1746696642993,-400.0,0.00012876,2]
[360281665,1746696643002,-400.0,0.00012876,2]
[360281666,1746696643011,-400.0,0.00012876,2]
[360281667,1746696643020,-400.0,0.00012876,2]
[360281668,1746696643029,-400.0,0.00012876,2]
[360281669,1746696643039,-400.0,0.00012876,2]
[360281670,1746696643048,-467.54,0.00012876,2]
[360281671,1746696643058,-400.0,0.00012876,2]
[360281672,1746696643067,-400.0,0.00012876,2]
[360281673,1746696643076,-721.15,0.00012876,2]
[360281674,1746696643085,-400.0,0.00012876,2]
[360281675,1746696643095,-400.0,0.00012876,2]
[360281676,1746696643106,-472.81,0.00012876,2]
[360281677,1746696643120,-400.0,0.00012876,2]
[360281678,1746696643129,-551.18,0.00012876,2]
[360281679,1746696643139,-400.0,0.00012876,2]
[360281680,1746696643150,-649.47,0.00012876,2]
[360281681,1746696643161,-594.67,0.00012876,2]
[360281682,1746696643170,-400.0,0.00012876,2]
[360281683,1746696643179,-400.0,0.00012876,2]
[360281684,1746696643191,-615.44,0.00012876,2]
[360281685,1746696643201,-400.0,0.00012876,2]
[360281686,1746696643210,-400.0,0.00012876,2]
[360281687,1746696643221,-1187.85,0.00012876,2]
[360281688,1746696643231,-1757.28,0.00012876,2]
[360281689,1746696643241,-438.11,0.00012876,2]
[360281690,1746696643252,-635.72,0.00012876,2]
[360281691,1746696643262,-400.0,0.00012876,2]
[360281692,1746696643271,-400.0,0.00012876,2]
[360281693,1746696643281,-472.11,0.00012876,2]
[360281694,1746696643291,-400.0,0.00012876,2]
[360281695,1746696643300,-817.72,0.00012876,2]
[360281696,1746696643310,-648.06,0.00012876,2]
[360281697,1746696643319,-400.0,0.00012876,2]
[360281698,1746696643328,-1871.12,0.00012876,2]
[360281699,1746696643337,-400.0,0.00012876,2]
[360281700,1746696643347,-400.0,0.00012876,2]
[360281701,1746696643356,-756.77,0.00012876,2]
[360281702,1746696643367,-400.0,0.00012876,2]
[360281703,1746696643376,-487.45,0.00012876,2]
[360281704,1746696643386,-400.0,0.00012876,2]
[360281705,1746696643395,-400.0,0.00012876,2]
[360281706,1746696643405,-1965.33,0.00012876,2]
[360281707,1746696643415,-538.71,0.00012876,2]
[360281708,1746696643427,-1239.36,0.00012876,2]
[360281709,1746696643440,-400.0,0.00012876,2]
[360281710,1746696643450,-400.0,0.00012876,2]
[360281711,1746696643461,-338.06698706,0.00012876,2]
[360281712,1746696643471,-400.0,0.00012876,2]
[360281713,1746696643481,-447.12,0.00012876,2]
[360281714,1746696643492,-484.7,0.00012876,2]
[360281715,1746696643503,-489.57,0.00012876,2]
[360281716,1746696643515,-791.07,0.00012876,2]
[360281718,1746696643524,-587.0,0.00012877,2]
[360281720,1746696643535,-12500.0,0.00012882,2]
[360281722,1746696643544,-12500.0,0.00012891,2]
[360281723,1746696643556,-395.0,0.00012893,2]
[360281724,1746696643565,-12500.0,0.000129,2]
[360281725,1746696643574,-1909.43097192,0.000129,2]
[360281726,1746696643584,-2785.34181127,0.000129,2]
[360281727,1746696643594,-2785.34181125,0.000129,2]
[360281728,1746696643603,-400.0,0.00013,2]
[360281729,1746696643613,-858.03249461,0.00013,2]
[360281730,1746696643623,-16558.86792281,0.00013003,2]
[360281731,1746696643633,-400.0,0.0001315,2]
[360281732,1746696643643,-473.62,0.0001315,2]
[360281733,1746696643652,-400.0,0.0001315,2]
[360281734,1746696643662,-577.48,0.0001315,2]
[360281735,1746696643672,-833.53,0.0001315,2]
[360281736,1746696643682,-400.0,0.0001315,2]
[360281737,1746696643692,-400.0,0.0001315,2]
[360281738,1746696643702,-403.82,0.0001315,2]
[360281739,1746696643711,-400.0,0.0001315,2]
[360281740,1746696643722,-1433.03,0.0001315,2]
[360281741,1746696643731,-864.11,0.0001315,2]
[360281742,1746696643741,-400.0,0.0001315,2]
[360281743,1746696643750,-400.0,0.0001315,2]
[360281744,1746696643760,-479.43,0.0001315,2]
[360281745,1746696643775,-400.0,0.0001315,2]
[360281746,1746696643785,-400.0,0.0001315,2]
[360281747,1746696643794,-400.0,0.0001315,2]
[360281748,1746696643804,-400.0,0.0001315,2]
[360281749,1746696643813,-400.0,0.0001315,2]
[360281750,1746696643822,-400.0,0.0001315,2]
[360281751,1746696643832,-207.07128336,0.0001315,2]
[360281752,1746696643841,-467.54,0.0001315,2]
[360281753,1746696643851,-400.0,0.0001315,2]
[360281754,1746696643861,-400.0,0.0001315,2]
[360281755,1746696643870,-721.15,0.0001315,2]
[360281756,1746696643879,-400.0,0.0001315,2]
[360281757,1746696643889,-400.0,0.0001315,2]
[360281758,1746696643899,-472.81,0.0001315,2]
[360281759,1746696643909,-514.41633483,0.0001315,2]
[360281760,1746696643918,-551.18,0.0001315,2]
[360281761,1746696643928,-400.0,0.0001315,2]
[360281762,1746696643937,-649.47,0.0001315,2]
[360281763,1746696643947,-594.67,0.0001315,2]
[360281764,1746696643956,-400.0,0.0001315,2]
[360281765,1746696643966,-400.0,0.0001315,2]
[360281766,1746696643976,-615.44,0.0001315,2]
[360281767,1746696643985,-400.0,0.0001315,2]
[360281768,1746696643995,-400.0,0.0001315,2]
[360281769,1746696644004,-1187.85,0.0001315,2]
[360281770,1746696644014,-1757.28,0.0001315,2]
[360281771,1746696644023,-438.11,0.0001315,2]
[360281772,1746696644033,-635.72,0.0001315,2]
[360281773,1746696644042,-400.0,0.0001315,2]
[360281774,1746696644051,-400.0,0.0001315,2]
[360281775,1746696644061,-472.11,0.0001315,2]
[360281776,1746696644071,-400.0,0.0001315,2]
[360281777,1746696644080,-817.72,0.0001315,2]
[360281778,1746696644090,-648.06,0.0001315,2]
[360281779,1746696644099,-400.0,0.0001315,2]
[360281780,1746696644111,-1871.12,0.0001315,2]
[360281781,1746696644122,-400.0,0.0001315,2]
[360281782,1746696644131,-400.0,0.0001315,2]
[360281783,1746696644141,-756.77,0.0001315,2]
[360281784,1746696644151,-400.0,0.0001315,2]
[360281785,1746696644162,-487.45,0.0001315,2]
[360281786,1746696644171,-400.0,0.0001315,2]
[360281787,1746696644182,-400.0,0.0001315,2]
[360281788,1746696644191,-1965.33,0.0001315,2]
[360281789,1746696644201,-538.71,0.0001315,2]
[360281790,1746696644211,-1239.36,0.0001315,2]
[360281791,1746696644221,-400.0,0.0001315,2]
[360281792,1746696644230,-400.0,0.0001315,2]
[360281793,1746696644240,-400.0,0.0001315,2]
[360281794,1746696644249,-447.12,0.0001315,2]
[360281795,1746696644259,-484.7,0.0001315,2]
[360281796,1746696644269,-489.57,0.0001315,2]
[360281797,1746696644278,-14681.29041029,0.00013279,2]
[360281798,1746696644724,-791.07,0.0001315,2]
[360281799,1746696644734,-1877.57751252,0.00013279,2]
[360281800,1746696644743,-128.25471575,0.00013285,2]
[360281801,1746696644755,-421.74015625,0.00013285,2]
[360281802,1746696644765,-151.0,0.000133,2]
[360281803,1746696644775,-842.118303,0.00013423,2]
[360281804,1746696644784,-160.0,0.00013423,2]
[360281805,1746696644794,-160.0,0.00013423,2]
[360281806,1746696644804,-309.51177064,0.00013424,2]
[360281886,1746697712398,10463.9175813,0.00010095,2]
[360281889,1746697765425,978.9817856,9.957e-05,2]
[360281913,1746697832543,-250.0,0.00010369,2]
[360281915,1746697832553,-259.9289717,0.0001045,2]
[360281917,1746697832565,-772.79413623,0.00010456,2]
[360281918,1746697832574,-300.0,0.00010956,2]
[360281920,1746697832584,-449.30250992,0.00010957,2]
[360281922,1746697832595,-500.0,0.00010957,2]
[360281924,1746697832606,-500.0,0.00010957,2]
[360281926,1746697832616,-500.0,0.00010957,2]
[360281928,1746697832626,-500.0,0.00010957,2]
[360281930,1746697832636,-500.0,0.00010957,2]
[360281932,1746697832645,-500.0,0.00010957,2]
[360281934,1746697832654,-457.78289414,0.00010957,2]
[360281936,1746697832664,-500.0,0.00010957,2]
[360281938,1746697832674,-500.0,0.00010957,2]
[360281940,1746697832683,-500.0,0.00010957,2]
[360281942,1746697832693,-500.0,0.00010957,2]
[360281944,1746697832703,-500.0,0.00010957,2]
[360281946,1746697832712,-80.69805591,0.00010957,2]
[360281948,1746697832724,-369.30194409,0.00010957,2]
[360281950,1746697832734,-500.0,0.00010957,2]
[360281952,1746697832744,-150.32422561,0.00010957,2]
[360281954,1746697832756,-349.67577439,0.00010957,2]
[360281956,1746697832765,-500.0,0.00010957,2]
[360281958,1746697832774,-500.0,0.00010957,2]
[360281960,1746697832784,-500.0,0.00010957,2]
[360281962,1746697832794,-500.0,0.00010957,2]
[360281964,1746697832803,-500.0,0.00010957,2]
[360281966,1746697832813,-500.0,0.00010957,2]
[360281968,1746697832822,-500.0,0.00010957,2]
[360281970,1746697832832,-500.0,0.00010957,2]
[360281972,1746697832842,-500.0,0.00010957,2]
[360281974,1746697832851,-500.0,0.00010957,2]
[360281976,1746697832860,-450.0,0.00010957,2]
[360281978,1746697832870,-500.0,0.00010957,2]
[360281980,1746697832879,-500.0,0.00010957,2]
[360281982,1746697832888,-305.89886027,0.00010957,2]
[360281984,1746697832898,-158.59444123,0.00010957,2]
[360281986,1746697832907,-500.0,0.00010957,2]
[360281988,1746697832917,-500.0,0.00010957,2]
[360281990,1746697832926,-500.0,0.00010957,2]
[360281992,1746697832936,-500.0,0.00010957,2]
[360281994,1746697832946,-644.71694859,0.00010957,2]
[360281996,1746697832955,-576.90248134,0.00010957,2]
[360281998,1746697832965,-500.0,0.00010957,2]
[360282020,1746697833181,-513.45124067,0.00010957,2]
[360282022,1746697833192,-520.95,0.00010958,2]
[360282024,1746697833202,-400.0,0.00010958,2]
[360282027,1746697833212,-188.33338445,0.00010958,2]
[360282028,1746697833221,-400.0,0.00010958,2]
[360282030,1746697833231,-400.0,0.00010958,2]
[360282032,1746697833240,-400.0,0.00010958,2]
[360282034,1746697833250,-400.0,0.00010958,2]
[360282036,1746697833260,-400.0,0.00010958,2]
[360282038,1746697833270,-400.0,0.00010958,2]
[360282040,1746697833279,-1272.76,0.00010958,2]
[360282042,1746697833288,-540.07,0.00010958,2]
[360282044,1746697833298,-400.0,0.00010958,2]
[360282046,1746697833308,-400.0,0.00010958,2]
[360282048,1746697833317,-400.0,0.00010958,2]
[360282050,1746697833327,-400.0,0.00010958,2]
[360282052,1746697833336,-400.0,0.00010958,2]
[360282054,1746697833346,-106.64789992,0.00010958,2]
[360282082,1746697838608,-293.35210008,0.00010958,2]
[360282083,1746697838617,-118.52534921,0.00010958,2]
[360282084,1746697838662,-281.47465079,0.00010958,2]
[360282085,1746697838672,-400.0,0.00010958,2]
[360282086,1746697838683,-400.0,0.00010958,2]
[360282087,1746697838693,-405.92,0.00010958,2]
[360282088,1746697838702,-290.88982332,0.00010958,2]
[360282089,1746697838714,-109.11017668,0.00010958,2]
[360282090,1746697838724,-400.0,0.00010958,2]
[360282091,1746697838734,-494.42,0.00010958,2]
[360282092,1746697838744,-450.72,0.00010958,2]
[360282093,1746697838754,-400.0,0.00010958,2]
[360282094,1746697838764,-400.0,0.00010958,2]
[360282095,1746697838774,-400.0,0.00010958,2]
[360282096,1746697838783,-1098.3,0.00010958,2]
[360282097,1746697838793,-400.0,0.00010958,2]
[360282098,1746697838802,-400.0,0.00010958,2]
[360282099,1746697838812,-400.0,0.00010958,2]
[360282100,1746697838821,-400.0,0.00010958,2]
[360282101,1746697838831,-400.0,0.00010958,2]
[360282102,1746697838840,-400.0,0.00010958,2]
[360282103,1746697838849,-400.0,0.00010958,2]
[360282104,1746697838859,-1169.45,0.00010958,2]
[360282105,1746697838868,-400.0,0.00010958,2]
[360282106,1746697838878,-176.87570381,0.00010958,2]
[360282107,1746697838887,-511.08,0.00010958,2]
[360282108,1746697838896,-400.0,0.00010958,2]
[360282109,1746697838906,-400.0,0.00010958,2]
[360282110,1746697838915,-472.98,0.00010958,2]
[360282111,1746697838924,-400.0,0.00010958,2]
[360282112,1746697838934,-742.41,0.00010958,2]
[360282113,1746697838944,-503.79336806,0.00010958,2]
[360282114,1746697838954,-400.0,0.00010958,2]
[360282115,1746697838963,-400.0,0.00010958,2]
[360282116,1746697838973,-400.0,0.00010958,2]
[360282117,1746697838983,-400.0,0.00010958,2]
[360282118,1746697838993,-405.04,0.00010958,2]
[360282119,1746697839003,-400.0,0.00010958,2]
[360282120,1746697839012,-400.0,0.00010958,2]
[360282121,1746697839022,-400.0,0.00010958,2]
[360282122,1746697839032,-400.0,0.00010958,2]
[360282123,1746697839044,-400.0,0.00010958,2]
[360282124,1746697839053,-400.0,0.00010958,2]
[360282125,1746697839062,-1228.33,0.00010958,2]
[360282126,1746697839072,-769.33,0.00010958,2]
[360282127,1746697839081,-400.0,0.00010958,2]
[360282128,1746697839090,-400.0,0.00010958,2]
[360282129,1746697839100,-774.6,0.00010958,2]
[360282130,1746697839109,-400.0,0.00010958,2]
[360282131,1746697839119,-26.4207199,0.00010958,2]
[360282256,1746697841082,-373.5792801,0.00010958,2]
[360282259,1746697841093,-77.9741138,0.00010958,2]
[360282486,1746697843656,-322.0258862,0.00010958,2]
[360282487,1746697843665,-400.0,0.00010958,2]
[360282488,1746697843675,-400.0,0.00010958,2]
[360282489,1746697843686,-400.0,0.00010958,2]
[360282490,1746697843696,-153.55866766,0.00011231,2]
[360282491,1746697843705,-510.86004351,0.00011231,2]
[360282492,1746697843715,-520.95,0.00011232,2]
[360282493,1746697843724,-400.0,0.00011232,2]
[360282494,1746697843734,-400.0,0.00011232,2]
[360282495,1746697843744,-400.0,0.00011232,2]
[360282496,1746697843753,-400.0,0.00011232,2]
[360282498,1746697843763,-400.0,0.00011232,2]
[360282500,1746697843772,-271.60540263,0.00011232,2]
[360282503,1746697843790,-128.39459737,0.00011232,2]
[360282505,1746697843800,-1272.76,0.00011232,2]
[360282507,1746697843809,-540.07,0.00011232,2]
[360282508,1746697843818,-400.0,0.00011232,2]
[360282509,1746697843827,-400.0,0.00011232,2]
[360282510,1746697843836,-404.33086739,0.00011232,2]
[360282511,1746697843845,-334.41453524,0.00011232,2]
[360282530,1746697959617,-200.23518423,0.00010268,2]
[360282531,1746697959641,-26.42460181,0.00010268,2]
[360282532,1746697964212,-197.38985002,0.00010268,2]
[360282533,1746697970161,-300.0,0.00010268,2]
[360282546,1746698406246,-300.0,0.00010268,2]
[360282548,1746698410938,-600.0,0.00010267,2]
[360282550,1746698422150,-300.0,0.00010267,2]
[360282551,1746698437221,-164.01665553,0.00010267,2]
[360282552,1746698452137,-135.98334447,0.00010267,2]
[360282553,1746698452160,-26.36194137,0.00010268,2]
[360282555,1746698467689,-300.0,0.00010267,2]
[360282556,1746698467712,-114.19848962,0.00010268,2]
[360282558,1746698482254,-35.62511718,0.00010268,2]
[360282559,1746698482277,-184.93790364,0.00010268,2]
[360282561,1746698488807,-154.87321133,0.00010268,2]
[360282562,1746698497155,-160.18888503,0.00010268,2]
[360282563,1746698497184,-89.62630189,0.00010268,2]
[360282565,1746698504628,-151.95138724,0.00010268,2]
[360282568,1746698512747,-163.3935257,0.00010268,2]
[360282569,1746698527669,-95.02878517,0.00010268,2]
[360282570,1746698527690,-204.97121483,0.00010268,2]
[360282572,1746698543345,-151.0,0.00010268,2]
[360282573,1746698600028,305.09,0.00010205,2]
[360282621,1746699031774,-144.02878517,0.00010268,2]
[360282622,1746699031784,-500.0,0.00010268,2]
[360282623,1746699031794,-500.0,0.00010268,2]
[360282624,1746699031804,-223.5943786,0.00010856,2]
[360282625,1746699031813,-151.0,0.00010951,2]
[360282626,1746699031823,-1074.72683623,0.00010955,2]
[360282725,1746699037872,-125.27316377,0.00010955,2]
[360282726,1746699037882,-300.0,0.00010956,2]
[360282727,1746699037892,-300.0,0.00010956,2]
[360282728,1746699037901,-500.0,0.00010957,2]
[360282729,1746699037912,-265.85695327,0.00010957,2]
[360282730,1746699038110,-500.0,0.00010957,2]
[360282731,1746699038121,-168.50364678,0.00010957,2]
[360282732,1746699038133,-331.49635322,0.00010957,2]
[360282733,1746699038142,-500.0,0.00010957,2]
[360282734,1746699038152,-500.0,0.00010957,2]
[360282735,1746699038161,-500.0,0.00010957,2]
[360282736,1746699038180,-500.0,0.00010957,2]
[360282737,1746699038191,-238.30188318,0.00010957,2]
[360282738,1746699038202,-513.45124067,0.00010957,2]
[360282739,1746699038213,-513.45124067,0.00010957,2]
[360282740,1746699038224,-162.34528584,0.00010957,2]
[360282741,1746699038234,-414.19848962,0.00010957,2]
[360282742,1746699038245,-220.56302082,0.00010957,2]
[360282743,1746699038255,-513.45124067,0.00010957,2]
[360282744,1746699038266,-513.45124067,0.00010957,2]
[360282745,1746699038276,-513.45124067,0.00010957,2]
[360282746,1746699038286,-513.45124067,0.00010957,2]
[360282747,1746699038297,-513.45124067,0.00010957,2]
[360282748,1746699038307,-400.0,0.00010958,2]
[360282749,1746699038317,-400.0,0.00010958,2]
[360282750,1746699038327,-400.0,0.00010958,2]
[360282751,1746699038337,-400.0,0.00010958,2]
[360282752,1746699038347,-226.65978604,0.00010958,2]
[360282753,1746699038357,-400.0,0.00010958,2]
[360282754,1746699038368,-400.0,0.00010958,2]
[360282755,1746699038378,-400.0,0.00010958,2]
[360282756,1746699038388,-1166.7,0.00010958,2]
[360282757,1746699038398,-400.0,0.00010958,2]
[360282758,1746699038407,-400.0,0.00010958,2]
[360282759,1746699038418,-309.45068198,0.00010958,2]
[360282760,1746699038428,-400.0,0.00010958,2]
[360282761,1746699038438,-400.0,0.00010958,2]
[360282762,1746699038448,-495.06,0.00010958,2]
[360282763,1746699038458,-400.0,0.00010958,2]
[360282764,1746699038468,-400.0,0.00010958,2]
[360282765,1746699038479,-400.0,0.00010958,2]
[360282766,1746699038489,-400.0,0.00010958,2]
[360282767,1746699038500,-400.0,0.00010958,2]
[360282768,1746699038510,-400.0,0.00010958,2]
[360282769,1746699038521,-310.37527959,0.00010958,2]
[360282770,1746699038542,-89.62472041,0.00010958,2]
[360282771,1746699038551,-477.54,0.00010958,2]
[360282772,1746699038562,-400.0,0.00010958,2]
[360282773,1746699038572,-400.0,0.00010958,2]
[360282774,1746699038582,-400.0,0.00010958,2]
[360282775,1746699038592,-400.0,0.00010958,2]
[360282776,1746699038601,-431.94,0.00010958,2]
[360282777,1746699038611,-1052.54,0.00010958,2]
[360282778,1746699038621,-400.0,0.00010958,2]
[360282779,1746699038631,-400.0,0.00010958,2]